[Event "December 5 Early 2023"]
[Site "https://www.chess.com"]
[Date "2023.12.05"]
[Round "4"]
[White "Jovic, Stanoje"]
[Black "Banzea, Alexandru-Bogdan"]
[Result "1/2-1/2"]
[Board "91"]
[TimeControl "180+1"]
[WhiteFideId "905020"]
[BlackFideId "1232622"]
[WhiteElo "2462"]
[BlackElo "2654"]
[WhiteTeam "SRB"]
[BlackTeam "ROU"]
[WhiteClock "0:00:12"]
[BlackClock "0:00:06"]

1. c4 {[%clk 0:03:00]}  Nf6 {[%clk 0:02:57]} 2. g3 {[%clk 0:03:01]}  g6 {[%clk 0:02:58]} 3. Bg2 {[%clk 0:03:01]}  Bg7 {[%clk 0:02:59]} 4. Nc3 {[%clk 0:03:01]}  O-O {[%clk 0:03:00]} 5. Nf3 {[%clk 0:03:01]}  d6 {[%clk 0:03:01]} 6. O-O {[%clk 0:03:01]}  e5 {[%clk 0:03:01]} 7. d3 {[%clk 0:03:01]}  h6 {[%clk 0:03:01]} 8. Rb1 {[%clk 0:03:01]}  a5 {[%clk 0:03:01]} 9. a3 {[%clk 0:03:02]}  c6 {[%clk 0:03:01]} 10. b4 {[%clk 0:03:02]}  axb4 {[%clk 0:03:02]} 11. axb4 {[%clk 0:03:02]}  Re8 {[%clk 0:03:03]} 12. e4 {[%clk 0:03:02]}  d5 {[%clk 0:02:31]} 13. exd5 {[%clk 0:03:00]}  cxd5 {[%clk 0:02:32]} 14. c5 {[%clk 0:03:00]}  e4 {[%clk 0:02:03]} 15. Nd4 {[%clk 0:02:39]}  Nc6 {[%clk 0:01:44]} 16. Nxc6 {[%clk 0:02:34]}  bxc6 {[%clk 0:01:45]} 17. dxe4 {[%clk 0:02:33]}  d4 {[%clk 0:01:23]} 18. e5 {[%clk 0:02:13]}  Bf5 {[%clk 0:01:23]} 19. exf6 {[%clk 0:02:09]}  Qxf6 {[%clk 0:01:24]} 20. Ne4 {[%clk 0:02:01]}  Bxe4 {[%clk 0:01:24]} 21. Bxe4 {[%clk 0:02:00]}  Rxe4 {[%clk 0:01:25]} 22. Qd3 {[%clk 0:01:56]}  Qe6 {[%clk 0:01:11]} 23. Bf4 {[%clk 0:01:48]}  g5 {[%clk 0:01:08]} 24. Bd6 {[%clk 0:01:47]}  Re8 {[%clk 0:00:49]} 25. b5 {[%clk 0:01:43]}  cxb5 {[%clk 0:00:48]} 26. Rxb5 {[%clk 0:01:42]}  Qh3 {[%clk 0:00:44]} 27. Rb8 {[%clk 0:01:27]}  Rxb8 {[%clk 0:00:29]} 28. Qxe4 {[%clk 0:01:26]}  Rc8 {[%clk 0:00:24]} 29. c6 {[%clk 0:01:22]}  Qe6 {[%clk 0:00:21]} 30. Qxe6 {[%clk 0:01:19]}  fxe6 {[%clk 0:00:22]} 31. c7 {[%clk 0:01:14]}  Kf7 {[%clk 0:00:22]} 32. Re1 {[%clk 0:01:10]}  Ke8 {[%clk 0:00:04]} 33. Rxe6+ {[%clk 0:01:09]}  Kd7 {[%clk 0:00:05]} 34. Rg6 {[%clk 0:01:07]}  d3 {[%clk 0:00:04]} 35. Bb4 {[%clk 0:01:02]}  Be5 {[%clk 0:00:01]} 36. Rxh6 {[%clk 0:00:56]}  Bxc7 {[%clk 0:00:02]} 37. h3 {[%clk 0:00:46]}  Rb8 {[%clk 0:00:03]} 38. Bd2 {[%clk 0:00:45]}  Rb1+ {[%clk 0:00:04]} 39. Kg2 {[%clk 0:00:45]}  Rb2 {[%clk 0:00:05]} 40. Bxg5 {[%clk 0:00:45]}  d2 {[%clk 0:00:05]} 41. Bxd2 {[%clk 0:00:42]}  Rxd2 {[%clk 0:00:06]} 42. Rf6 {[%clk 0:00:42]}  Bd6 {[%clk 0:00:06]} 43. h4 {[%clk 0:00:42]}  Ke7 {[%clk 0:00:07]} 44. Rf5 {[%clk 0:00:41]}  Ke6 {[%clk 0:00:07]} 45. Rf3 {[%clk 0:00:41]}  Rd4 {[%clk 0:00:06]} 46. Kh3 {[%clk 0:00:40]}  Bc5 {[%clk 0:00:06]} 47. g4 {[%clk 0:00:39]}  Bd6 {[%clk 0:00:06]} 48. h5 {[%clk 0:00:39]}  Rf4 {[%clk 0:00:06]} 49. Re3+ {[%clk 0:00:36]}  Kf6 {[%clk 0:00:06]} 50. f3 {[%clk 0:00:36]}  Rd4 {[%clk 0:00:05]} 51. Kg2 {[%clk 0:00:30]}  Rd2+ {[%clk 0:00:05]} 52. Kf1 {[%clk 0:00:30]}  Kg5 {[%clk 0:00:04]} 53. Ke1 {[%clk 0:00:28]}  Rd5 {[%clk 0:00:03]} 54. Ke2 {[%clk 0:00:27]}  Bf4 {[%clk 0:00:04]} 55. Rd3 {[%clk 0:00:24]}  Rxd3 {[%clk 0:00:04]} 56. Kxd3 {[%clk 0:00:25]}  Bc1 {[%clk 0:00:03]} 57. Ke4 {[%clk 0:00:25]}  Bd2 {[%clk 0:00:03]} 58. Ke5 {[%clk 0:00:24]}  Bc1 {[%clk 0:00:02]} 59. Ke6 {[%clk 0:00:24]}  Bd2 {[%clk 0:00:02]} 60. Kf7 {[%clk 0:00:22]}  Kh6 {[%clk 0:00:02]} 61. Kf6 {[%clk 0:00:22]}  Bg5+ {[%clk 0:00:02]} 62. Kf5 {[%clk 0:00:22]}  Bc1 {[%clk 0:00:02]} 63. f4 {[%clk 0:00:23]}  Bd2 {[%clk 0:00:02]} 64. Ke4 {[%clk 0:00:14]}  Bc1 {[%clk 0:00:03]} 65. Kf5 {[%clk 0:00:14]}  Bd2 {[%clk 0:00:03]} 66. g5+ {[%clk 0:00:14]}  Kxh5 {[%clk 0:00:03]} 67. g6 {[%clk 0:00:12]}  Bc3 {[%clk 0:00:04]} 68. Ke6 {[%clk 0:00:11]}  Kxg6 {[%clk 0:00:05]} 69. f5+ {[%clk 0:00:12]}  Kg7 {[%clk 0:00:05]} 70. f6+ {[%clk 0:00:12]}  Bxf6 {[%clk 0:00:06]} 1/2-1/2

[Event "December 5 Early 2023"]
[Site "https://www.chess.com"]
[Date "2023.12.05"]
[Round "4"]
[White "Moksh Amit Doshi"]
[Black "Latorre, Vincent"]
[Result "1/2-1/2"]
[Board "95"]
[TimeControl "180+1"]
[WhiteFideId "25064967"]
[BlackFideId "2636891"]
[WhiteElo "2644"]
[BlackElo "2439"]
[WhiteTeam "IND"]
[BlackTeam "CAN"]
[WhiteClock "0:00:15"]
[BlackClock "0:00:04"]

1. c4 {[%clk 0:02:55]}  e5 {[%clk 0:02:58]} 2. g3 {[%clk 0:02:54]}  Nf6 {[%clk 0:02:56]} 3. Bg2 {[%clk 0:02:53]}  g6 {[%clk 0:02:50]} 4. Nc3 {[%clk 0:02:52]}  Bg7 {[%clk 0:02:50]} 5. Nf3 {[%clk 0:02:51]}  d6 {[%clk 0:02:50]} 6. d4 {[%clk 0:02:49]}  exd4 {[%clk 0:02:50]} 7. Nxd4 {[%clk 0:02:49]}  O-O {[%clk 0:02:50]} 8. O-O {[%clk 0:02:50]}  Re8 {[%clk 0:02:47]} 9. b3 {[%clk 0:02:44]}  a5 {[%clk 0:02:46]} 10. Bb2 {[%clk 0:02:44]}  Nbd7 {[%clk 0:02:46]} 11. Qc2 {[%clk 0:02:43]}  Nc5 {[%clk 0:02:43]} 12. Rad1 {[%clk 0:02:43]}  c6 {[%clk 0:02:38]} 13. e3 {[%clk 0:02:34]}  Qc7 {[%clk 0:02:38]} 14. a3 {[%clk 0:02:29]}  Bd7 {[%clk 0:02:34]} 15. b4 {[%clk 0:02:25]}  axb4 {[%clk 0:02:34]} 16. axb4 {[%clk 0:02:25]}  Ne6 {[%clk 0:02:35]} 17. Nde2 {[%clk 0:02:22]}  Rad8 {[%clk 0:02:08]} 18. Na4 {[%clk 0:02:13]}  Ng5 {[%clk 0:02:01]} 19. c5 {[%clk 0:02:08]}  d5 {[%clk 0:01:58]} 20. Nb6 {[%clk 0:02:07]}  Bf5 {[%clk 0:01:57]} 21. Qb3 {[%clk 0:02:04]}  Be4 {[%clk 0:01:44]} 22. f3 {[%clk 0:01:58]}  Bf5 {[%clk 0:01:44]} 23. g4 {[%clk 0:01:58]}  Bc8 {[%clk 0:01:36]} 24. Nxc8 {[%clk 0:01:54]}  Qxc8 {[%clk 0:01:32]} 25. Nf4 {[%clk 0:01:48]}  Qc7 {[%clk 0:01:27]} 26. Rfe1 {[%clk 0:01:48]}  Ne6 {[%clk 0:01:23]} 27. Nd3 {[%clk 0:01:31]}  d4 {[%clk 0:01:16]} 28. e4 {[%clk 0:01:20]}  Nf4 {[%clk 0:01:04]} 29. Nxf4 {[%clk 0:01:19]}  Qxf4 {[%clk 0:01:05]} 30. Rxd4 {[%clk 0:01:05]}  Rxd4 {[%clk 0:00:20]} 31. Bxd4 {[%clk 0:01:04]}  Nxg4 {[%clk 0:00:21]} 32. Bxg7 {[%clk 0:01:03]}  Qxh2+ {[%clk 0:00:21]} 33. Kf1 {[%clk 0:01:04]}  Ne5 {[%clk 0:00:21]} 34. Bxe5 {[%clk 0:01:03]}  Qxe5 {[%clk 0:00:22]} 35. Rd1 {[%clk 0:01:00]}  Re7 {[%clk 0:00:20]} 36. Qd3 {[%clk 0:00:58]}  h5 {[%clk 0:00:16]} 37. Qd8+ {[%clk 0:00:54]}  Kh7 {[%clk 0:00:16]} 38. Kg1 {[%clk 0:00:41]}  h4 {[%clk 0:00:16]} 39. Qc8 {[%clk 0:00:40]}  Qf4 {[%clk 0:00:14]} 40. Qg4 {[%clk 0:00:40]}  Qh6 {[%clk 0:00:13]} 41. Rd7 {[%clk 0:00:38]}  Rxd7 {[%clk 0:00:12]} 42. Qxd7 {[%clk 0:00:37]}  Qe3+ {[%clk 0:00:13]} 43. Kf1 {[%clk 0:00:32]}  Qc1+ {[%clk 0:00:13]} 44. Ke2 {[%clk 0:00:29]}  Qc2+ {[%clk 0:00:13]} 45. Qd2 {[%clk 0:00:29]}  Qc4+ {[%clk 0:00:13]} 46. Kf2 {[%clk 0:00:28]}  Qe6 {[%clk 0:00:12]} 47. Qf4 {[%clk 0:00:28]}  Qe7 {[%clk 0:00:12]} 48. Kg1 {[%clk 0:00:26]}  Kg7 {[%clk 0:00:10]} 49. e5 {[%clk 0:00:23]}  Qd7 {[%clk 0:00:05]} 50. Kh2 {[%clk 0:00:23]}  Qe7 {[%clk 0:00:03]} 51. Bh3 {[%clk 0:00:23]}  g5 {[%clk 0:00:04]} 52. Qf6+ {[%clk 0:00:23]}  Qxf6 {[%clk 0:00:03]} 53. exf6+ {[%clk 0:00:24]}  Kxf6 {[%clk 0:00:04]} 54. Bc8 {[%clk 0:00:24]}  Ke5 {[%clk 0:00:05]} 55. Bxb7 {[%clk 0:00:25]}  Kd5 {[%clk 0:00:06]} 56. b5 {[%clk 0:00:19]}  Kxc5 {[%clk 0:00:07]} 57. Bxc6 {[%clk 0:00:19]}  f5 {[%clk 0:00:06]} 58. Bd7 {[%clk 0:00:18]}  g4 {[%clk 0:00:05]} 59. fxg4 {[%clk 0:00:19]}  fxg4 {[%clk 0:00:06]} 60. Kg2 {[%clk 0:00:18]}  Kb6 {[%clk 0:00:06]} 61. Kf2 {[%clk 0:00:17]}  Kc5 {[%clk 0:00:05]} 62. Ke3 {[%clk 0:00:15]}  g3 {[%clk 0:00:03]} 63. Kf3 {[%clk 0:00:16]}  Kb6 {[%clk 0:00:02]} 64. Kg2 {[%clk 0:00:15]}  Kc5 {[%clk 0:00:03]} 65. Bc6 {[%clk 0:00:15]}  Kb6 {[%clk 0:00:03]} 66. Kh3 {[%clk 0:00:16]}  Kc5 {[%clk 0:00:04]} 67. Be8 {[%clk 0:00:15]}  Kb6 {[%clk 0:00:04]} 68. Bc6 {[%clk 0:00:15]}  Kc5 {[%clk 0:00:04]} 69. Kxh4 {[%clk 0:00:15]}  g2 {[%clk 0:00:04]} 70. Bxg2 {[%clk 0:00:15]}  Kxb5 {[%clk 0:00:04]} 1/2-1/2

[Event "December 5 Early 2023"]
[Site "https://www.chess.com"]
[Date "2023.12.05"]
[Round "4"]
[White "Zavgorodniy, Sergiy"]
[Black "Sahil, Tickoo"]
[Result "1-0"]
[Board "96"]
[TimeControl "180+1"]
[WhiteFideId "14110148"]
[BlackFideId "5019710"]
[WhiteElo "2644"]
[BlackElo "2430"]
[WhiteTeam "UKR"]
[BlackTeam "IND"]
[WhiteClock "0:01:04"]
[BlackClock "0:00:09"]

1. e4 {[%clk 0:03:00]}  c5 {[%clk 0:02:59]} 2. Nf3 {[%clk 0:03:00]}  d5 {[%clk 0:03:00]} 3. exd5 {[%clk 0:02:59]}  Nf6 {[%clk 0:03:00]} 4. Bb5+ {[%clk 0:02:54]}  Nbd7 {[%clk 0:02:56]} 5. c4 {[%clk 0:02:49]}  a6 {[%clk 0:02:56]} 6. Bxd7+ {[%clk 0:02:49]}  Bxd7 {[%clk 0:02:51]} 7. d4 {[%clk 0:02:50]}  e6 {[%clk 0:02:43]} 8. dxe6 {[%clk 0:02:49]}  Bxe6 {[%clk 0:02:43]} 9. d5 {[%clk 0:02:49]}  Bf5 {[%clk 0:02:44]} 10. O-O {[%clk 0:02:48]}  Bd6 {[%clk 0:02:44]} 11. Re1+ {[%clk 0:02:47]}  Kf8 {[%clk 0:02:44]} 12. Nc3 {[%clk 0:02:44]}  h6 {[%clk 0:02:43]} 13. b3 {[%clk 0:02:36]}  Kg8 {[%clk 0:02:43]} 14. Bb2 {[%clk 0:02:36]}  Kh7 {[%clk 0:02:44]} 15. Ne2 {[%clk 0:02:31]}  Bg6 {[%clk 0:02:36]} 16. Ne5 {[%clk 0:02:27]}  Re8 {[%clk 0:02:29]} 17. Nf4 {[%clk 0:02:25]}  Qc7 {[%clk 0:02:19]} 18. Nexg6 {[%clk 0:02:09]}  Bxf4 {[%clk 0:01:44]} 19. Nxf4 {[%clk 0:02:08]}  Qxf4 {[%clk 0:01:44]} 20. Qd3+ {[%clk 0:02:08]}  Kg8 {[%clk 0:01:40]} 21. g3 {[%clk 0:02:07]}  Qg5 {[%clk 0:01:33]} 22. h4 {[%clk 0:02:03]}  Qg6 {[%clk 0:01:32]} 23. Qxg6 {[%clk 0:02:02]}  fxg6 {[%clk 0:01:33]} 24. Bxf6 {[%clk 0:02:02]}  gxf6 {[%clk 0:01:34]} 25. Kf1 {[%clk 0:01:56]}  Kf7 {[%clk 0:01:15]} 26. Rxe8 {[%clk 0:01:56]}  Rxe8 {[%clk 0:01:15]} 27. Re1 {[%clk 0:01:56]}  Rb8 {[%clk 0:00:52]} 28. Re6 {[%clk 0:01:46]}  b5 {[%clk 0:00:52]} 29. Rc6 {[%clk 0:01:38]}  bxc4 {[%clk 0:00:52]} 30. bxc4 {[%clk 0:01:38]}  Rb1+ {[%clk 0:00:51]} 31. Kg2 {[%clk 0:01:38]}  Rb2 {[%clk 0:00:50]} 32. Rxc5 {[%clk 0:01:38]}  Rxa2 {[%clk 0:00:50]} 33. Rc7+ {[%clk 0:01:38]}  Ke8 {[%clk 0:00:50]} 34. d6 {[%clk 0:01:27]}  a5 {[%clk 0:00:39]} 35. c5 {[%clk 0:01:22]}  Kd8 {[%clk 0:00:36]} 36. Rg7 {[%clk 0:01:16]}  Rc2 {[%clk 0:00:34]} 37. Rxg6 {[%clk 0:01:12]}  Rxc5 {[%clk 0:00:34]} 38. Rxh6 {[%clk 0:01:09]}  a4 {[%clk 0:00:16]} 39. Rh8+ {[%clk 0:01:09]}  Kd7 {[%clk 0:00:17]} 40. Ra8 {[%clk 0:01:09]}  Rc4 {[%clk 0:00:17]} 41. Ra6 {[%clk 0:01:09]}  Rd4 {[%clk 0:00:15]} 42. h5 {[%clk 0:01:05]}  f5 {[%clk 0:00:09]} 43. h6 {[%clk 0:01:04]} 1-0

[Event "December 5 Early 2023"]
[Site "https://www.chess.com"]
[Date "2023.12.05"]
[Round "4"]
[White "Renjith, Sravan"]
[Black "Todorovic, Bojan"]
[Result "0-1"]
[Board "97"]
[TimeControl "180+1"]
[WhiteFideId "4306783"]
[BlackFideId "917087"]
[WhiteElo "2640"]
[BlackElo "2430"]
[WhiteTeam "NZL"]
[BlackTeam "SRB"]
[WhiteClock "0:00:18"]
[BlackClock "0:00:09"]

1. e4 {[%clk 0:03:00]}  g6 {[%clk 0:02:59]} 2. Nf3 {[%clk 0:02:58]}  Bg7 {[%clk 0:02:58]} 3. g3 {[%clk 0:02:58]}  d6 {[%clk 0:02:57]} 4. Bg2 {[%clk 0:02:59]}  Nf6 {[%clk 0:02:56]} 5. c3 {[%clk 0:02:59]}  O-O {[%clk 0:02:55]} 6. d3 {[%clk 0:02:59]}  c5 {[%clk 0:02:51]} 7. O-O {[%clk 0:02:59]}  Nc6 {[%clk 0:02:50]} 8. Re1 {[%clk 0:03:00]}  Rb8 {[%clk 0:02:50]} 9. a4 {[%clk 0:02:59]}  b6 {[%clk 0:02:46]} 10. Nbd2 {[%clk 0:02:59]}  Ba6 {[%clk 0:02:42]} 11. Nc4 {[%clk 0:02:56]}  e6 {[%clk 0:02:37]} 12. e5 {[%clk 0:02:55]}  dxe5 {[%clk 0:02:23]} 13. Nfxe5 {[%clk 0:02:55]}  Ne7 {[%clk 0:02:18]} 14. Qc2 {[%clk 0:02:34]}  Bb7 {[%clk 0:02:17]} 15. Bxb7 {[%clk 0:02:27]}  Rxb7 {[%clk 0:02:17]} 16. f4 {[%clk 0:02:27]}  Nd7 {[%clk 0:02:11]} 17. Qg2 {[%clk 0:02:27]}  Rc7 {[%clk 0:01:59]} 18. Qf3 {[%clk 0:02:17]}  Nxe5 {[%clk 0:01:52]} 19. fxe5 {[%clk 0:02:17]}  Qd5 {[%clk 0:01:48]} 20. Re4 {[%clk 0:02:01]}  Rd7 {[%clk 0:01:45]} 21. Bg5 {[%clk 0:01:59]}  Nf5 {[%clk 0:01:34]} 22. Rd1 {[%clk 0:01:58]}  h6 {[%clk 0:01:29]} 23. Bc1 {[%clk 0:01:54]}  Rfd8 {[%clk 0:01:28]} 24. g4 {[%clk 0:01:50]}  Nh4 {[%clk 0:01:26]} 25. Qe2 {[%clk 0:01:48]}  g5 {[%clk 0:01:21]} 26. Ne3 {[%clk 0:01:44]}  Qb3 {[%clk 0:01:19]} 27. Nc4 {[%clk 0:01:30]}  Ng6 {[%clk 0:01:17]} 28. Be3 {[%clk 0:01:25]}  Qxa4 {[%clk 0:01:10]} 29. Nxb6 {[%clk 0:01:23]}  Qxe4 {[%clk 0:01:10]} 30. Nxd7 {[%clk 0:01:18]}  Qd5 {[%clk 0:01:01]} 31. Nxc5 {[%clk 0:01:07]}  Nxe5 {[%clk 0:00:59]} 32. d4 {[%clk 0:00:58]}  Nf3+ {[%clk 0:00:54]} 33. Kf2 {[%clk 0:00:57]}  Nh4 {[%clk 0:00:53]} 34. Kg3 {[%clk 0:00:52]}  Be5+ {[%clk 0:00:48]} 35. Kh3 {[%clk 0:00:52]}  Bc7 {[%clk 0:00:36]} 36. Rf1 {[%clk 0:00:48]}  f5 {[%clk 0:00:32]} 37. Bc1 {[%clk 0:00:41]}  Re8 {[%clk 0:00:18]} 38. Re1 {[%clk 0:00:30]}  Kf7 {[%clk 0:00:11]} 39. gxf5 {[%clk 0:00:27]}  Nxf5 {[%clk 0:00:08]} 40. Qh5+ {[%clk 0:00:27]}  Kg7 {[%clk 0:00:08]} 41. Re4 {[%clk 0:00:14]}  Qd6 {[%clk 0:00:08]} 42. Qe2 {[%clk 0:00:12]}  h5 {[%clk 0:00:08]} 43. Nxe6+ {[%clk 0:00:12]}  Rxe6 {[%clk 0:00:07]} 44. Rxe6 {[%clk 0:00:13]}  g4+ {[%clk 0:00:07]} 45. Kg2 {[%clk 0:00:13]}  Qxh2+ {[%clk 0:00:07]} 46. Kf1 {[%clk 0:00:13]}  Ng3+ {[%clk 0:00:08]} 47. Ke1 {[%clk 0:00:13]}  Nxe2 {[%clk 0:00:08]} 48. Rxe2 {[%clk 0:00:14]}  Qg1+ {[%clk 0:00:08]} 49. Kd2 {[%clk 0:00:15]}  Bf4+ {[%clk 0:00:08]} 50. Kd3 {[%clk 0:00:15]}  Qxc1 {[%clk 0:00:08]} 51. Re7+ {[%clk 0:00:16]}  Kg6 {[%clk 0:00:09]} 52. Rxa7 {[%clk 0:00:17]}  Kg5 {[%clk 0:00:09]} 53. b4 {[%clk 0:00:16]}  Qb1+ {[%clk 0:00:09]} 54. Kc4 {[%clk 0:00:16]}  g3 {[%clk 0:00:09]} 55. b5 {[%clk 0:00:16]}  g2 {[%clk 0:00:10]} 56. Rg7+ {[%clk 0:00:17]}  Kf5 {[%clk 0:00:09]} 57. Rxg2 {[%clk 0:00:18]}  h4 {[%clk 0:00:10]} 58. Rg8 {[%clk 0:00:17]}  h3 {[%clk 0:00:10]} 59. Kc5 {[%clk 0:00:18]}  h2 {[%clk 0:00:09]} 60. Rf8+ {[%clk 0:00:18]}  Kg4 {[%clk 0:00:09]} 0-1

[Event "December 5 Early 2023"]
[Site "https://www.chess.com"]
[Date "2023.12.05"]
[Round "4"]
[White "Goldin, Roman"]
[Black "Taichman, Ori"]
[Result "0-1"]
[Board "98"]
[TimeControl "180+1"]
[WhiteFideId "2803860"]
[BlackFideId "2804069"]
[WhiteElo "2429"]
[BlackElo "2639"]
[WhiteTeam "ISR"]
[BlackTeam "ISR"]
[WhiteClock "0:00:00"]
[BlackClock "0:00:51"]

1. e4 {[%clk 0:03:00]}  b6 {[%clk 0:02:57]} 2. d4 {[%clk 0:03:00]}  Bb7 {[%clk 0:02:57]} 3. Bd3 {[%clk 0:03:00]}  Nf6 {[%clk 0:02:57]} 4. Qe2 {[%clk 0:03:00]}  e6 {[%clk 0:02:57]} 5. Nf3 {[%clk 0:03:00]}  d5 {[%clk 0:02:56]} 6. Nbd2 {[%clk 0:03:00]}  dxe4 {[%clk 0:02:53]} 7. Nxe4 {[%clk 0:03:00]}  Nxe4 {[%clk 0:02:54]} 8. Bxe4 {[%clk 0:03:00]}  Bxe4 {[%clk 0:02:55]} 9. Qxe4 {[%clk 0:03:00]}  Qd5 {[%clk 0:02:55]} 10. Qxd5 {[%clk 0:02:58]}  exd5 {[%clk 0:02:56]} 11. Bf4 {[%clk 0:02:57]}  Na6 {[%clk 0:02:54]} 12. O-O-O {[%clk 0:02:50]}  f6 {[%clk 0:02:53]} 13. Rhe1+ {[%clk 0:02:49]}  Kf7 {[%clk 0:02:53]} 14. Re3 {[%clk 0:02:43]}  Be7 {[%clk 0:02:37]} 15. Rde1 {[%clk 0:02:28]}  Rhe8 {[%clk 0:02:38]} 16. a3 {[%clk 0:02:18]}  c5 {[%clk 0:02:32]} 17. Re6 {[%clk 0:02:08]}  c4 {[%clk 0:02:24]} 18. Bd6 {[%clk 0:01:52]}  Bxd6 {[%clk 0:02:19]} 19. Rxd6 {[%clk 0:01:52]}  Rad8 {[%clk 0:02:09]} 20. Rxe8 {[%clk 0:01:38]}  Kxe8 {[%clk 0:02:10]} 21. Rxd8+ {[%clk 0:01:32]}  Kxd8 {[%clk 0:02:11]} 22. Kd2 {[%clk 0:01:06]}  Kd7 {[%clk 0:01:53]} 23. h4 {[%clk 0:00:59]}  h5 {[%clk 0:01:52]} 24. Nh2 {[%clk 0:00:58]}  Ke6 {[%clk 0:01:40]} 25. Nf1 {[%clk 0:00:49]}  Nb8 {[%clk 0:01:36]} 26. Ne3 {[%clk 0:00:29]}  Nc6 {[%clk 0:01:36]} 27. c3 {[%clk 0:00:27]}  Ne7 {[%clk 0:01:36]} 28. Ke2 {[%clk 0:00:27]}  Nf5 {[%clk 0:01:08]} 29. Nxf5 {[%clk 0:00:24]}  Kxf5 {[%clk 0:01:09]} 30. Kf3 {[%clk 0:00:21]}  b5 {[%clk 0:01:08]} 31. g3 {[%clk 0:00:13]}  g6 {[%clk 0:01:03]} 32. Ke3 {[%clk 0:00:08]}  Kg4 {[%clk 0:01:03]} 33. Ke2 {[%clk 0:00:06]}  g5 {[%clk 0:00:56]} 34. hxg5 {[%clk 0:00:04]}  fxg5 {[%clk 0:00:57]} 35. Kf1 {[%clk 0:00:03]}  Kf3 {[%clk 0:00:56]} 36. Kg1 {[%clk 0:00:03]}  h4 {[%clk 0:00:51]} 37. gxh4 {[%clk 0:00:00]}  gxh4 {[%clk 0:00:51]} 0-1

[Event "December 5 Early 2023"]
[Site "https://www.chess.com"]
[Date "2023.12.05"]
[Round "4"]
[White "Sai Han Thiha"]
[Black "Gimenez Aguirre, Alejo Ismael"]
[Result "1-0"]
[Board "99"]
[TimeControl "180+1"]
[WhiteFideId "13012290"]
[BlackFideId "32041667"]
[WhiteElo "2418"]
[BlackElo "2634"]
[WhiteTeam "MYA"]
[BlackTeam "ARG"]
[WhiteClock "0:00:06"]
[BlackClock "0:00:00"]

1. Nf3 {[%clk 0:03:00]}  d5 {[%clk 0:02:58]} 2. g3 {[%clk 0:03:01]}  c6 {[%clk 0:02:58]} 3. Bg2 {[%clk 0:03:01]}  Nf6 {[%clk 0:02:59]} 4. O-O {[%clk 0:03:01]}  g6 {[%clk 0:02:59]} 5. b3 {[%clk 0:03:00]}  Bg7 {[%clk 0:03:00]} 6. Bb2 {[%clk 0:03:01]}  O-O {[%clk 0:03:00]} 7. c4 {[%clk 0:03:01]}  Ne4 {[%clk 0:03:00]} 8. Bxg7 {[%clk 0:02:58]}  Kxg7 {[%clk 0:03:01]} 9. d3 {[%clk 0:02:49]}  Nf6 {[%clk 0:02:59]} 10. Qd2 {[%clk 0:02:27]}  a5 {[%clk 0:02:56]} 11. Qb2 {[%clk 0:02:26]}  a4 {[%clk 0:02:53]} 12. b4 {[%clk 0:02:25]}  dxc4 {[%clk 0:02:42]} 13. dxc4 {[%clk 0:02:25]}  Be6 {[%clk 0:02:42]} 14. Ne5 {[%clk 0:02:22]}  Nbd7 {[%clk 0:02:40]} 15. Rd1 {[%clk 0:02:20]}  Qc7 {[%clk 0:02:16]} 16. Nxd7 {[%clk 0:02:20]}  Bxd7 {[%clk 0:02:16]} 17. c5 {[%clk 0:02:14]}  Be6 {[%clk 0:02:08]} 18. a3 {[%clk 0:02:07]}  h5 {[%clk 0:02:07]} 19. Nc3 {[%clk 0:02:04]}  h4 {[%clk 0:02:05]} 20. Ne4 {[%clk 0:01:56]}  Rad8 {[%clk 0:01:56]} 21. Rd6 {[%clk 0:01:35]}  Rd7 {[%clk 0:00:38]} 22. Rxe6 {[%clk 0:01:12]}  fxe6 {[%clk 0:00:34]} 23. Ng5 {[%clk 0:01:12]}  Kg8 {[%clk 0:00:17]} 24. Nxe6 {[%clk 0:01:11]}  Qc8 {[%clk 0:00:18]} 25. Nxf8 {[%clk 0:00:49]}  Qxf8 {[%clk 0:00:18]} 26. Bh3 {[%clk 0:00:44]}  Rd8 {[%clk 0:00:13]} 27. Be6+ {[%clk 0:00:43]}  Kg7 {[%clk 0:00:14]} 28. g4 {[%clk 0:00:34]}  Kh6 {[%clk 0:00:09]} 29. f4 {[%clk 0:00:26]}  g5 {[%clk 0:00:08]} 30. fxg5+ {[%clk 0:00:20]}  Kxg5 {[%clk 0:00:08]} 31. Qe5+ {[%clk 0:00:20]}  Kg6 {[%clk 0:00:08]} 32. Rf1 {[%clk 0:00:14]}  Qh6 {[%clk 0:00:08]} 33. Bf5+ {[%clk 0:00:09]}  Kf7 {[%clk 0:00:07]} 34. Kh1 {[%clk 0:00:04]}  h3 {[%clk 0:00:07]} 35. g5 {[%clk 0:00:04]}  Qxg5 {[%clk 0:00:04]} 36. Be6+ {[%clk 0:00:05]}  Kg6 {[%clk 0:00:04]} 37. Rg1 {[%clk 0:00:05]}  Qxg1+ {[%clk 0:00:04]} 38. Kxg1 {[%clk 0:00:05]}  Rd1+ {[%clk 0:00:03]} 39. Kf2 {[%clk 0:00:06]}  Nd5 {[%clk 0:00:01]} 40. Qf5+ {[%clk 0:00:06]}  Kg7 {[%clk 0:00:01]} 41. Bxd5 {[%clk 0:00:06]}  Rxd5 {[%clk 0:00:01]} 42. Qxh3 {[%clk 0:00:07]}  Kf7 {[%clk 0:00:02]} 43. Qf3+ {[%clk 0:00:06]}  Kg6 {[%clk 0:00:02]} 44. Qg4+ {[%clk 0:00:06]}  Rg5 {[%clk 0:00:00]} 45. Qe6+ {[%clk 0:00:06]} 1-0

[Event "December 5 Early 2023"]
[Site "https://www.chess.com"]
[Date "2023.12.05"]
[Round "4"]
[White "Buchenau, Frank"]
[Black "Skliarov, Viktor"]
[Result "0-1"]
[Board "100"]
[TimeControl "180+1"]
[WhiteFideId "4604350"]
[BlackFideId "14106736"]
[WhiteElo "2380"]
[BlackElo "2626"]
[WhiteTeam "GER"]
[BlackTeam "UKR"]
[WhiteClock "0:00:24"]
[BlackClock "0:00:07"]

1. e4 {[%clk 0:03:00]}  c5 {[%clk 0:02:59]} 2. Nf3 {[%clk 0:03:00]}  Nc6 {[%clk 0:03:00]} 3. Bb5 {[%clk 0:02:58]}  e6 {[%clk 0:02:59]} 4. Bxc6 {[%clk 0:02:58]}  bxc6 {[%clk 0:03:00]} 5. d3 {[%clk 0:02:58]}  Ne7 {[%clk 0:03:01]} 6. e5 {[%clk 0:02:56]}  Ng6 {[%clk 0:02:59]} 7. Qe2 {[%clk 0:02:56]}  f6 {[%clk 0:02:59]} 8. h4 {[%clk 0:02:54]}  h5 {[%clk 0:02:59]} 9. Qe4 {[%clk 0:02:52]}  Kf7 {[%clk 0:02:56]} 10. Na3 {[%clk 0:02:44]}  Nxe5 {[%clk 0:02:45]} 11. Nxe5+ {[%clk 0:02:41]}  fxe5 {[%clk 0:02:45]} 12. Bg5 {[%clk 0:02:33]}  Be7 {[%clk 0:02:21]} 13. Nc4 {[%clk 0:02:22]}  d6 {[%clk 0:02:16]} 14. Qxc6 {[%clk 0:02:16]}  Rb8 {[%clk 0:01:43]} 15. Bxe7 {[%clk 0:02:06]}  Kxe7 {[%clk 0:01:42]} 16. Qf3 {[%clk 0:01:45]}  Qf8 {[%clk 0:01:23]} 17. Qg3 {[%clk 0:01:37]}  Ba6 {[%clk 0:01:16]} 18. O-O-O {[%clk 0:01:28]}  Bxc4 {[%clk 0:00:51]} 19. dxc4 {[%clk 0:01:29]}  Qf4+ {[%clk 0:00:50]} 20. Qxf4 {[%clk 0:01:28]}  exf4 {[%clk 0:00:51]} 21. Rhe1 {[%clk 0:01:22]}  e5 {[%clk 0:00:44]} 22. Rd3 {[%clk 0:01:21]}  Rb6 {[%clk 0:00:33]} 23. g3 {[%clk 0:01:06]}  Rf8 {[%clk 0:00:31]} 24. Rg1 {[%clk 0:01:02]}  Rf7 {[%clk 0:00:11]} 25. gxf4 {[%clk 0:01:00]}  Rxf4 {[%clk 0:00:11]} 26. Rxg7+ {[%clk 0:00:59]}  Kf6 {[%clk 0:00:12]} 27. Rg2 {[%clk 0:00:50]}  Rxh4 {[%clk 0:00:08]} 28. b3 {[%clk 0:00:44]}  Rf4 {[%clk 0:00:07]} 29. Rdg3 {[%clk 0:00:41]}  h4 {[%clk 0:00:08]} 30. Rg6+ {[%clk 0:00:41]}  Kf5 {[%clk 0:00:08]} 31. Kd2 {[%clk 0:00:36]}  d5 {[%clk 0:00:07]} 32. cxd5 {[%clk 0:00:24]}  Rxg6 {[%clk 0:00:07]} 0-1